fUSD/lending_fUSD_20250714
["ID","MTS","AMOUNT","RATE_DAILY","PERIOD"]
[371858668,1752451544160,-150.0,0.00027397,2]
[371858669,1752451544182,-4.23480713,0.0002774,2]
[371858671,1752451638092,-231.80684159,0.0002774,2]
[371858672,1752451641112,-363.95835128,0.0002774,2]
[371858673,1752451641135,-600.0,0.00028695,2]
[371858674,1752451641157,-108.90179881,0.00028767,2]
[371858675,1752451643096,-41.09820119,0.00028767,2]
[371858676,1752451643117,-156.2447719,0.00029996,2]
[371858677,1752451643140,-150.0,0.0003,3]
[371858678,1752451643163,-305.0,0.00030005,2]
[371858679,1752451643187,-302.46,0.00030005,2]
[371858680,1752451643208,-305.58,0.00030005,2]
[371858681,1752451643230,-301.33,0.00030038,2]
[371858682,1752451643254,-303.88,0.00030038,2]
[371858683,1752451643276,-36.65640882,0.00030038,2]
[371858685,1752451742478,155.34,0.00013699,2]
[371858687,1752451745075,-155.34,0.00026027,2]
[371858688,1752451745099,-265.59359118,0.00030038,2]
[371858689,1752451745121,-250.0,0.00030043,2]
[371858690,1752451745144,-1600.0,0.00030048,2]
[371858691,1752451745166,-151.0,0.00030049,2]
[371858692,1752451745189,-151.0,0.00030049,2]
[371858693,1752451745211,-151.0,0.00030049,2]
[371858694,1752451745234,-304.74,0.00030049,2]
[371858695,1752451745257,-303.03,0.00030049,2]
[371858696,1752451745281,-250.0,0.00030051,2]
[371858697,1752451745303,-305.69,0.00030068,2]
[371858698,1752451745758,-303.63,0.00030068,2]
[371858699,1752451745783,-305.05,0.00030072,2]
[371858700,1752451745805,-304.22,0.00030096,2]
[371858701,1752451745829,-303.2,0.00030096,2]
[371858702,1752451745851,-305.41,0.0003012,2]
[371858703,1752451745874,-301.17,0.00030127,2]
[371858704,1752451745899,-150.0,0.00030136,2]
[371858705,1752451745921,-302.52,0.00030168,2]
[371858706,1752451745943,-304.18,0.00030168,2]
[371858707,1752451745965,-300.13,0.00030223,2]
[371858708,1752451745987,-300.05,0.00030223,2]
[371858709,1752451746010,-305.46,0.00030291,2]
[371858710,1752451746035,-305.85,0.00030291,2]
[371858711,1752451746056,-302.43,0.00030408,2]
[371858712,1752451746079,-300.89,0.00030408,2]
[371858713,1752451746101,-305.1,0.00030408,2]
[371858714,1752451746123,-2500.0,0.00030513,2]
[371858715,1752451746146,-302.52,0.0003085,2]
[371858716,1752451746168,-150.0,0.0003102,3]
[371858717,1752451746191,-4819.16752946,0.00031655,2]
[371858718,1752451746214,-150.0,0.0003204,3]
[371858719,1752451746238,-255.0,0.00032521,3]
[371858720,1752451746260,-250.0,0.00033042,2]
[371858721,1752451746284,-150.0,0.0003306,3]
[371858722,1752451746306,-150.0,0.0003408,3]
[371858723,1752451746329,-220.0,0.000351,3]
[371858724,1752451746349,-252.04186209,0.00036622,2]
[371858725,1752451746370,-791.88,0.00036778,2]
[371858726,1752451746392,-1000.0,0.0003683,2]
[371858727,1752451746417,-6733.3,0.00037013,2]
[371858728,1752451746439,-199.63832072,0.000372,120]
[371858729,1752451746459,-1609.19,0.00037211,2]
[371858730,1752451746482,-169.95,0.00037224,2]
[371858731,1752451746503,-3869.31559561,0.00037332,2]
[371858737,1752451752079,-250.0,0.0003,30]
[371858738,1752451752101,-1130.68440439,0.00037332,2]
[371858739,1752451752121,-336.48,0.00037491,2]
[371858740,1752451752143,-184.72,0.00037573,2]
[371858741,1752451752166,-184.72,0.00037698,2]
[371858742,1752451752187,-487.17,0.00037765,2]
[371858743,1752451752208,-250.0,0.00037811,2]
[371858744,1752451752229,-287.27,0.00037811,2]
[371858745,1752451752252,-184.72,0.00037823,2]
[371858746,1752451752274,-838.03288719,0.00037862,2]
[371858747,1752451759081,-387.77711281,0.00037862,2]
[371858748,1752451759106,-184.72,0.00037948,2]
[371858749,1752451759130,-154.49,0.0003835,30]
[371858750,1752451759154,-155.34,0.00038356,2]
[371858751,1752451759178,-505.723,0.00038485,51]
[371858752,1752451759200,-2275.72,0.00039283,2]
[371858753,1752451759222,-153.42,0.00039397,2]
[371858754,1752451759244,-150.0,0.00039495,2]
[371858755,1752451759266,-969.67,0.00039589,2]
[371858756,1752451759289,-487.17,0.00039653,2]
[371858757,1752451759311,-150.0,0.00039723,7]
[371858758,1752451759333,-150.0,0.00039723,7]
[371858759,1752451759354,-150.0,0.00039723,7]
[371858760,1752451759375,-150.0,0.00039723,7]
[371858761,1752451759396,-150.0,0.00039723,7]
[371858762,1752451759418,-150.0,0.00039723,7]
[371858763,1752451759439,-150.0,0.00039723,7]
[371858764,1752451759460,-160.71,0.0004,4]
[371858765,1752451759480,-759.44,0.0004,120]
[371858766,1752451759503,-200.0,0.0004,30]
[371858767,1752451759524,-7358.28,0.00040026,2]
[371858768,1752451759548,-500.0,0.00040123,2]
[371858769,1752451759571,-500.0,0.00040123,2]
[371858770,1752451759595,-500.0,0.00040123,2]
[371858771,1752451759618,-500.0,0.00040123,2]
[371858772,1752451759641,-500.0,0.00040123,2]
[371858773,1752451759667,-500.0,0.00040123,2]
[371858774,1752451759690,-376.85037701,0.00040123,2]
[371858775,1752451759713,-4031.856,0.00040123,2]
[371858776,1752451759736,-423.60521358,0.00040123,2]
[371858777,1752451759758,-666.0,0.00040141,2]
[371858778,1752451759781,-4181.034672,0.00040178,2]
[371858779,1752451759803,-4335.73295486,0.00040233,2]
[371858780,1752451759826,-210.5657325,0.00040259,2]
[371858781,1752451759848,-4496.15507419,0.00040288,2]
[371858782,1752451759869,-505.05711659,0.00040341,31]
[371858783,1752451759893,-500.0,0.00040341,31]
[371858784,1752451759918,-170.04088913,0.00040341,31]
[371858785,1752451759944,-500.0,0.00040341,31]
[371858786,1752451759973,-500.0,0.00040341,31]
[371858787,1752451759999,-500.0,0.00040341,31]
[371858788,1752451760027,-500.0,0.00040341,31]
[371858789,1752451760052,-500.0,0.00040341,31]
[371858790,1752451760079,-602.32740863,0.00040341,31]
[371858791,1752451760105,-4662.51281194,0.00040343,2]
[371858792,1752451760128,-4835.02578598,0.00040398,2]
[371858793,1752451760154,-533.0,0.0004042,10]
[371858794,1752451760176,-5013.92174006,0.00040453,2]
[371858795,1752451760199,-5199.43684444,0.00040508,2]
[371858796,1752451760222,-5391.81600769,0.00040563,2]
[371858797,1752451760245,-5447.20895831,0.00040618,2]
[371858798,1752451762105,-144.10424166,0.00040618,2]
[371858799,1752451762127,-4055.12805241,0.00040673,2]
[371858800,1752451762148,-174.0,0.00041,90]
[371858801,1752451762170,-150.0,0.00041195,30]
[371858802,1752451762190,-1000.0,0.00041301,2]
[371858803,1752451762211,-2392.34,0.00041301,2]
[371858804,1752451762233,-1167.33324345,0.00041334,60]
[371858805,1752451762256,-23900.0,0.00041335,2]
[371858806,1752451769138,-1000.0,0.00041434,2]
[371858807,1752451769160,-487.17,0.00041541,2]
[371858808,1752451769180,-1610.43,0.0004157,2]
[371858809,1752451769201,-150.0,0.0004193,30]
[371858810,1752451769222,-190.0,0.00041964,7]
[371858811,1752451769243,-1760.65,0.00042,120]
[371858812,1752451769263,-24527.18407483,0.00042,30]
[371858813,1752451769287,-533.0,0.00042052,10]
[371858814,1752451769307,-281.0,0.0004211,2]
[371858818,1752451780169,179.82,0.00039944,2]
[371858821,1752451816400,786.0,0.0002201,2]
[371858826,1752451831550,-150.0,0.00042666,30]
[371858827,1752451831560,-479.54525024,0.00042683,10]
[371858828,1752451831571,-53.45474976,0.00042683,10]
[371858829,1752451831580,-676.14901827,0.00042683,2]
[371858830,1752451831592,-1323.66978661,0.00042683,2]
[371858831,1752451831603,-16.99119512,0.00042683,2]
[371858832,1752451831613,-347.0,0.00042881,2]
[371858833,1752451831622,-5.70920488,0.00043103,7]
[371858834,1752451831651,-341.29079512,0.00043103,7]
[371858835,1752451831661,-500.0,0.00043135,60]
[371858836,1752451831969,-174.0,0.00043151,90]
[371858837,1752451831988,-177.29628,0.0004326,17]
[371858838,1752451831998,-300.0,0.000433,15]
[371858839,1752451832007,-600.0,0.000434,15]
[371858840,1752451832018,-487.17,0.00043429,2]
[371858841,1752451832028,-349.0,0.00043449,2]
[371858842,1752451832038,-3499.999999,0.000435,120]
[371858843,1752451832048,-1000.0,0.000435,15]
[371858844,1752451832057,-586.92809724,0.0004358,15]
[371858846,1752451832067,-1000.0,0.000436,2]
[371858848,1752451832076,-1300.0,0.000436,15]
[371858850,1752451832085,-483.99624603,0.000436,120]
[371858852,1752451832095,-483.9962459,0.000436,120]
[371858854,1752451832105,-483.9962459,0.000436,120]
[371858856,1752451832114,-483.9962459,0.000436,120]
[371858858,1752451832124,-483.9962459,0.000436,120]
[371858860,1752451832133,-483.9962459,0.000436,120]
[371858862,1752451832144,-483.9962459,0.000436,120]
[371858865,1752451832154,-483.9962459,0.000436,120]
[371858868,1752451832164,-483.9962459,0.000436,120]
[371858871,1752451832173,-483.9962459,0.000436,120]
[371858875,1752451832183,-483.9962459,0.000436,120]
[371858878,1752451832192,-483.9962459,0.000436,120]
[371858881,1752451832202,-586.92809717,0.00043603,15]
[371858885,1752451832212,-483.9962459,0.00043612,120]
[371858888,1752451832223,-586.92809717,0.00043627,15]
[371858891,1752451832232,-483.9962459,0.0004363,120]
[371858894,1752451832241,-483.9962459,0.00043648,120]
[371858897,1752451832251,-586.92809717,0.0004365,15]
[371858900,1752451832260,-483.9962459,0.00043665,120]
[371858903,1752451832269,-176.14924843,0.0004367,28]
[371858905,1752451832279,-586.92809717,0.00043673,15]
[371858907,1752451832288,-41321.7626,0.0004368,2]
[371858908,1752451832298,-483.9962459,0.00043683,120]
[371858910,1752451832307,-500.0,0.00043683,60]
[371858912,1752451832317,-208.22545692,0.00043689,15]
[371858914,1752451832327,-586.92809717,0.00043697,15]
[371858916,1752451832337,-1700.0,0.000437,15]
[371858918,1752451832359,-483.9962459,0.00043701,120]
[371858920,1752451832379,-483.9962459,0.00043718,120]
[371858922,1752451832390,-586.92809717,0.0004372,15]
[371858924,1752451832399,-509.27897424,0.00043735,12]
[371858926,1752451832411,-483.9962459,0.00043736,120]
[371858928,1752451832420,-586.92809717,0.00043743,15]
[371858930,1752451832430,-586.92809717,0.00043767,15]
[371858932,1752451832439,-58294.7459743,0.00043769,3]
[371858934,1752451832450,-500.0,0.00043773,10]
[371858936,1752451832460,-500.0,0.00043773,10]
[371858938,1752451832470,-500.0,0.00043773,5]
[371858940,1752451832479,-500.0,0.00043773,10]
[371858942,1752451832488,-386.23391333,0.00043773,10]
[371858944,1752451832498,-500.0,0.00043773,10]
[371858946,1752451832508,-500.0,0.00043773,10]
[371858948,1752451832518,-500.0,0.00043773,10]
[371858950,1752451832527,-215.19860259,0.00043773,10]
[371858952,1752451832537,-150.0,0.00043773,10]
[371858954,1752451832546,-158.36263122,0.00043773,10]
[371858956,1752451832556,-500.0,0.00043773,10]
[371858958,1752451832565,-1005.9821388,0.00043779,30]
[371858960,1752451832574,-210.5657325,0.0004378,3]
[371858962,1752451832584,-187.1326441,0.0004378,3]
[371858964,1752451832596,-121889.01431,0.0004378,3]
[371858966,1752451832605,-42400.8729091,0.0004378,3]
[371858968,1752451832614,-151.92,0.0004378,2]
[371858970,1752451832624,-500.0,0.00043789,15]
[371858972,1752451832633,-500.0,0.00043789,15]
[371858974,1752451832643,-500.0,0.00043789,15]
[371858976,1752451832652,-500.0,0.00043789,15]
[371858978,1752451832662,-500.0,0.00043789,15]
[371858980,1752451832671,-500.0,0.00043789,15]
[371858982,1752451832686,-500.0,0.00043789,15]
[371858984,1752451832695,-500.0,0.00043789,15]
[371858985,1752451832705,-500.0,0.00043789,15]
[371858986,1752451832715,-161.90326891,0.00043789,15]
[371858987,1752451832725,-31797.1341678,0.0004379,3]
[371858988,1752451832734,-174314.699737,0.0004379,3]
[371858989,1752451832745,-249925.66412099,0.0004379,30]
[371858990,1752451832756,-586.92809717,0.0004379,15]
[371858991,1752451832764,-206.03517112,0.0004379,2]
[371858992,1752451832773,-993.52694402,0.0004379,2]
[371858993,1752451832783,-220.00983365,0.0004379,120]
[371858994,1752451832792,-702.11733709,0.000438,30]
[371858995,1752451832801,-315145.37254299,0.000438,30]
[371858996,1752451832811,-187.1326441,0.000438,10]
[371858997,1752451832821,-187.1326441,0.000438,30]
[371858998,1752451832830,-300.0,0.000438,15]
[371858999,1752451832840,-247.41200533,0.000438,3]
[371859000,1752451832851,-300.0,0.00043834,30]
[371859001,1752451832861,-460.0,0.00043835,15]
[371859002,1752451832871,-460.0,0.00043835,15]
[371859003,1752451832880,-460.0,0.00043835,15]
[371859004,1752451832890,-460.0,0.00043835,15]
[371859005,1752451832901,-594.27380007,0.00043835,15]
[371859006,1752451832911,-460.0,0.00043835,15]
[371859007,1752451832920,-465.5,0.00043835,15]
[371859008,1752451832930,-596.89,0.00043835,15]
[371859009,1752451832939,-460.0,0.00043835,15]
[371859010,1752451832949,-460.0,0.00043835,15]
[371859011,1752451832959,-460.0,0.00043835,15]
[371859012,1752451832969,-460.0,0.00043835,15]
[371859013,1752451832979,-460.0,0.00043835,15]
[371859014,1752451832988,-460.0,0.00043835,15]
[371859015,1752451832999,-460.0,0.00043835,15]
[371859016,1752451833008,-460.0,0.00043835,15]
[371859017,1752451833018,-500.0,0.00043835,15]
[371859018,1752451833028,-500.0,0.00043835,15]
[371859019,1752451833038,-500.0,0.00043835,15]
[371859020,1752451833050,-500.0,0.00043835,15]
[371859021,1752451833060,-500.0,0.00043835,15]
[371859022,1752451833070,-460.0,0.00043835,15]
[371859023,1752451833081,-460.0,0.00043835,15]
[371859024,1752451833091,-460.0,0.00043835,15]
[371859025,1752451833103,-460.0,0.00043835,15]
[371859026,1752451833113,-460.0,0.00043835,15]
[371859027,1752451833123,-193.5052666,0.00043835,15]
[371859028,1752451833133,-496.19419783,0.00043835,15]
[371859029,1752451833143,-460.0,0.00043835,15]
[371859030,1752451833153,-460.0,0.00043835,15]
[371859031,1752451833163,-460.0,0.00043835,15]
[371859032,1752451833172,-1000.0,0.00043835,15]
[371859033,1752451833182,-460.0,0.00043835,15]
[371859034,1752451833191,-460.0,0.00043835,15]
[371859035,1752451833201,-460.0,0.00043835,15]
[371859036,1752451833211,-460.0,0.00043835,15]
[371859037,1752451833221,-460.0,0.00043835,15]
[371859038,1752451833230,-460.0,0.00043835,15]
[371859039,1752451833240,-460.0,0.00043835,15]
[371859040,1752451833250,-373.106311,0.00043835,15]
[371859041,1752451833259,-460.0,0.00043835,15]
[371859042,1752451833269,-460.0,0.00043835,15]
[371859043,1752451833278,-460.0,0.00043835,15]
[371859044,1752451833288,-460.0,0.00043835,15]
[371859045,1752451833297,-534.9622355,0.00043835,15]
[371859046,1752451833307,-460.0,0.00043835,15]
[371859047,1752451833317,-460.0,0.00043835,15]
[371859048,1752451833327,-460.0,0.00043835,15]
[371859049,1752451833337,-460.0,0.00043835,15]
[371859050,1752451833348,-460.0,0.00043835,15]
[371859051,1752451833358,-460.0,0.00043835,15]
[371859052,1752451833368,-460.0,0.00043835,15]
[371859053,1752451833378,-460.0,0.00043835,15]
[371859054,1752451833388,-513.21077136,0.00043835,15]
[371859055,1752451833398,-460.0,0.00043835,15]
[371859056,1752451833414,-460.0,0.00043835,15]
[371859057,1752451833425,-460.0,0.00043835,15]
[371859058,1752451833434,-460.0,0.00043835,15]
[371859059,1752451833445,-460.0,0.00043835,15]
[371859060,1752451833455,-460.0,0.00043835,15]
[371859061,1752451833464,-460.0,0.00043835,15]
[371859062,1752451833474,-460.0,0.00043835,15]
[371859063,1752451833483,-460.0,0.00043835,15]
[371859064,1752451833493,-460.0,0.00043835,15]
[371859065,1752451833503,-460.0,0.00043835,15]
[371859066,1752451833513,-460.0,0.00043835,15]
[371859067,1752451833523,-506.5746375,0.00043835,15]
[371859068,1752451833538,-342.10237621,0.00043835,15]
[371859069,1752451833549,-460.0,0.00043835,15]
[371859070,1752451833559,-460.0,0.00043835,2]
[371859071,1752451833569,-460.0,0.00043835,15]
[371859072,1752451833578,-460.0,0.00043835,15]
[371859073,1752451833588,-460.0,0.00043835,15]
[371859074,1752451833600,-460.0,0.00043835,15]
[371859075,1752451833610,-460.0,0.00043835,15]
[371859076,1752451833620,-460.0,0.00043835,15]
[371859077,1752451833631,-460.0,0.00043835,15]
[371859078,1752451833640,-460.0,0.00043835,15]
[371859079,1752451833650,-460.0,0.00043835,15]
[371859080,1752451833660,-151.0,0.00043835,14]
[371859081,1752451833669,-460.0,0.00043835,15]
[371859082,1752451833683,-460.0,0.00043835,15]
[371859083,1752451833694,-500.0,0.00043835,15]
[371859084,1752451833704,-460.0,0.00043835,15]
[371859085,1752451833714,-317.24204857,0.00043835,15]
[371859086,1752451833724,-460.0,0.00043835,15]
[371859087,1752451833735,-460.0,0.00043835,15]
[371859088,1752451833744,-460.0,0.00043835,15]
[371859089,1752451833756,-460.0,0.00043835,15]
[371859090,1752451833767,-460.0,0.00043835,15]
[371859091,1752451833777,-460.0,0.00043835,15]
[371859092,1752451833787,-460.0,0.00043835,15]
[371859093,1752451833797,-462.94211761,0.00043835,15]
[371859094,1752451833807,-460.0,0.00043835,15]
[371859095,1752451833817,-460.0,0.00043835,15]
[371859096,1752451833827,-460.0,0.00043835,15]
[371859097,1752451833837,-460.0,0.00043835,15]
[371859098,1752451833848,-460.0,0.00043835,15]
[371859099,1752451833857,-186.65103,0.00043835,14]
[371859100,1752451833868,-186.65103,0.00043835,14]
[371859101,1752451833878,-460.0,0.00043835,15]
[371859102,1752451833888,-361.197133,0.00043835,15]
[371859103,1752451833898,-460.0,0.00043835,15]
[371859104,1752451833909,-191.874682,0.00043835,14]
[371859105,1752451833919,-460.0,0.00043835,15]
[371859106,1752451833929,-460.0,0.00043835,15]
[371859107,1752451833939,-2157.129452,0.00043835,15]
[371859108,1752451833948,-191.874682,0.00043835,14]
[371859109,1752451833958,-1325.806903,0.00043835,15]
[371859110,1752451833968,-460.0,0.00043835,15]
[371859111,1752451833978,-500.0,0.00043835,15]
[371859112,1752451833988,-460.0,0.00043835,15]
[371859113,1752451833998,-151.0,0.00043835,14]
[371859114,1752451834009,-436.04822243,0.00043835,15]
[371859115,1752451834019,-151.0,0.00043835,14]
[371859116,1752451834028,-460.0,0.00043835,15]
[371859117,1752451834038,-460.0,0.00043835,5]
[371859118,1752451834048,-151.0,0.00043835,14]
[371859119,1752451834057,-186.33716148,0.00043835,15]
[371859120,1752451834067,-460.0,0.00043835,15]
[371859121,1752451834076,-466.36523111,0.00043835,15]
[371859122,1752451834086,-460.0,0.00043835,15]
[371859123,1752451834097,-194.33344435,0.00043835,15]
[371859124,1752451834107,-460.0,0.00043835,15]
[371859125,1752451834117,-249.144577,0.00043835,15]
[371859126,1752451834127,-460.0,0.00043835,15]
[371859127,1752451834136,-460.0,0.00043835,15]
[371859128,1752451834146,-460.0,0.00043835,15]
[371859129,1752451834155,-151.0,0.00043835,14]
[371859130,1752451834165,-460.0,0.00043835,15]
[371859131,1752451834175,-460.0,0.00043835,15]
[371859132,1752451834184,-460.0,0.00043835,15]
[371859133,1752451834194,-462.26,0.00043835,15]
[371859134,1752451834204,-460.0,0.00043835,15]
[371859135,1752451834214,-177.970273,0.00043835,14]
[371859136,1752451834224,-635.09,0.00043835,15]
[371859137,1752451834234,-151.0,0.00043835,14]
[371859138,1752451834244,-177.970273,0.00043835,14]
[371859139,1752451834257,-460.0,0.00043835,2]
[371859140,1752451834267,-460.0,0.00043835,15]
[371859141,1752451834276,-460.0,0.00043835,3]
[371859142,1752451834286,-460.0,0.00043835,15]
[371859143,1752451834295,-460.0,0.00043835,15]
[371859144,1752451834306,-718.53,0.00043835,15]
[371859145,1752451834315,-299.213856,0.00043835,14]
[371859146,1752451834325,-299.213856,0.00043835,14]
[371859147,1752451834335,-460.0,0.00043835,15]
[371859148,1752451834346,-460.0,0.00043835,15]
[371859149,1752451834356,-460.0,0.00043835,15]
[371859150,1752451834365,-460.0,0.00043835,15]
[371859151,1752451834375,-460.0,0.00043835,15]
[371859152,1752451834385,-495.08240199,0.00043835,15]
[371859153,1752451834395,-460.0,0.00043835,15]
[371859154,1752451834404,-460.0,0.00043835,15]
[371859155,1752451834414,-460.0,0.00043835,15]
[371859156,1752451834424,-460.0,0.00043835,15]
[371859157,1752451834433,-460.0,0.00043835,15]
[371859158,1752451834442,-151.0,0.00043835,14]
[371859159,1752451834453,-151.0,0.00043835,14]
[371859160,1752451834463,-460.0,0.00043835,15]
[371859161,1752451834472,-151.0,0.00043835,14]
[371859162,1752451834482,-460.0,0.00043835,15]
[371859163,1752451834492,-155.971535,0.00043835,14]
[371859164,1752451834502,-151.0,0.00043835,14]
[371859165,1752451834512,-151.0,0.00043835,14]
[371859166,1752451834522,-151.0,0.00043835,14]
[371859167,1752451834531,-151.0,0.00043835,14]
[371859168,1752451834543,-151.0,0.00043835,14]
[371859169,1752451834553,-476.85357276,0.00043835,15]
[371859170,1752451834562,-460.0,0.00043835,15]
[371859171,1752451834572,-460.0,0.00043835,15]
[371859172,1752451834582,-386.55630527,0.00043835,15]
[371859173,1752451834592,-151.0,0.00043835,14]
[371859174,1752451834602,-1211.13,0.00043835,15]
[371859175,1752451834612,-460.0,0.00043835,15]
[371859176,1752451834622,-460.0,0.00043835,15]
[371859177,1752451834631,-460.0,0.00043835,15]
[371859178,1752451834641,-154.176404,0.00043835,14]
[371859179,1752451834651,-460.0,0.00043835,15]
[371859180,1752451834661,-460.0,0.00043835,15]
[371859181,1752451834671,-460.0,0.00043835,15]
[371859182,1752451834683,-460.0,0.00043835,15]
[371859183,1752451834693,-460.0,0.00043835,15]
[371859184,1752451834703,-492.60762232,0.00043835,15]
[371859185,1752451834713,-460.0,0.00043835,15]
[371859186,1752451834725,-460.0,0.00043835,15]
[371859187,1752451834735,-460.0,0.00043835,15]
[371859188,1752451834745,-463.28818652,0.00043835,15]
[371859189,1752451834756,-460.0,0.00043835,15]
[371859190,1752451834766,-390.693431,0.00043835,14]
[371859191,1752451834777,-490.59,0.00043835,15]
[371859192,1752451834786,-460.0,0.00043835,15]
[371859193,1752451834796,-460.0,0.00043835,15]
[371859194,1752451834806,-700.8,0.00043835,15]
[371859195,1752451834816,-460.0,0.00043835,15]
[371859196,1752451834825,-460.0,0.00043835,15]
[371859197,1752451834835,-460.0,0.00043835,15]
[371859198,1752451834845,-390.693431,0.00043835,14]
[371859199,1752451834854,-700.8,0.00043835,15]
[371859200,1752451834864,-700.8,0.00043835,15]
[371859201,1752451834873,-700.8,0.00043835,15]
[371859202,1752451834883,-700.8,0.00043835,15]
[371859203,1752451834892,-700.8,0.00043835,15]
[371859204,1752451834899,-700.8,0.00043835,15]
[371859205,1752451834906,-700.8,0.00043835,15]
[371859206,1752451834915,-460.0,0.00043835,15]
[371859207,1752451834924,-700.8,0.00043835,15]
[371859208,1752451834934,-207.29148361,0.00043835,15]
[371859209,1752451834944,-700.8,0.00043835,15]
[371859210,1752451834954,-700.8,0.00043835,15]
[371859211,1752451834963,-700.8,0.00043835,15]
[371859212,1752451834973,-700.8,0.00043835,15]
[371859213,1752451834983,-700.8,0.00043835,15]
[371859214,1752451834993,-700.8,0.00043835,15]
[371859215,1752451835004,-700.8,0.00043835,15]
[371859216,1752451835025,-460.0,0.00043835,15]
[371859217,1752451835042,-155.60611,0.00043835,14]
[371859218,1752451835052,-566.34,0.00043835,15]
[371859219,1752451835062,-460.0,0.00043835,15]
[371859220,1752451835072,-460.0,0.00043835,15]
[371859221,1752451835081,-151.0,0.00043835,14]
[371859222,1752451835091,-460.0,0.00043835,15]
[371859223,1752451835101,-460.0,0.00043835,15]
[371859224,1752451835110,-470.62,0.00043835,15]
[371859225,1752451835119,-460.0,0.00043835,15]
[371859226,1752451835128,-460.0,0.00043835,15]
[371859227,1752451835138,-460.0,0.00043835,120]
[371859228,1752451835147,-638.96,0.00043835,15]
[371859229,1752451835157,-549.68729334,0.00043835,15]
[371859230,1752451835166,-500.0,0.00043835,2]
[371859231,1752451835175,-460.0,0.00043835,15]
[371859232,1752451835185,-500.0,0.00043835,2]
[371859233,1752451835196,-500.0,0.00043835,2]
[371859234,1752451835206,-550.30392669,0.00043835,15]
[371859235,1752451835217,-500.0,0.00043835,2]
[371859236,1752451835227,-500.0,0.00043835,2]
[371859237,1752451835236,-460.0,0.00043835,15]
[371859238,1752451835246,-460.0,0.00043835,15]
[371859239,1752451835255,-460.0,0.00043835,15]
[371859240,1752451835265,-471.660176,0.00043835,15]
[371859241,1752451835274,-460.0,0.00043835,15]
[371859242,1752451835284,-545.45,0.00043835,15]
[371859243,1752451835293,-460.0,0.00043835,15]
[371859244,1752451835303,-460.0,0.00043835,15]
[371859245,1752451835313,-117.94189845,0.00043835,15]
[371859246,1752451835437,-342.05810155,0.00043835,15]
[371859247,1752451835448,-460.0,0.00043835,15]
[371859248,1752451835459,-460.0,0.00043835,15]
[371859249,1752451835468,-303.61312366,0.00043835,15]
[371859250,1752451835540,-500.0,0.00043779,31]
[371859251,1752451835551,-289.49377776,0.00043779,31]
[371859252,1752451835565,-44.50622224,0.00043779,31]
[371859275,1752451838134,-176.04641247,0.00043779,31]
[371859277,1752451838144,-398.69942573,0.00043779,31]
[371859279,1752451838154,-195.7273039,0.00043779,31]
[371859281,1752451838163,-156.38687634,0.00043835,15]
[371859283,1752451838173,-303.25007236,0.00043835,15]
[371859285,1752451838185,-239.68781048,0.00043835,15]
[371859287,1752451838195,-560.15,0.00043835,15]
[371859289,1752451838204,-500.0,0.00043835,10]
[371859291,1752451838214,-414.29960866,0.00043835,15]